fUSD/lending_fUSD_20250823
["ID","MTS","AMOUNT","RATE_DAILY","PERIOD"]
[380991809,1755930662353,-400.0,0.00013972,2]
[380991810,1755930662364,-400.0,0.00013972,2]
[380991811,1755930662375,-741.34,0.00013972,2]
[380991812,1755930662387,-428.59,0.00013972,2]
[380991813,1755930662397,-773.01,0.00013972,2]
[380991814,1755930662407,-654.73,0.00013972,2]
[380991815,1755930662418,-412.9,0.00013972,2]
[380991816,1755930662429,-400.0,0.00013972,2]
[380991817,1755930662440,-400.0,0.00013972,2]
[380991818,1755930662450,-400.0,0.00013972,2]
[380991819,1755930662460,-400.0,0.00013972,2]
[380991820,1755930662471,-439.05,0.00013972,2]
[380991821,1755930662481,-400.0,0.00013972,2]
[380991822,1755930662491,-400.0,0.00013972,2]
[380991823,1755930662501,-805.82,0.00013972,2]
[380991824,1755930662510,-400.0,0.00013972,2]
[380991825,1755930662520,-400.0,0.00013972,2]
[380991826,1755930662530,-407.07,0.00013972,2]
[380991827,1755930662540,-733.47,0.00013972,2]
[380991828,1755930662550,-400.0,0.00013972,2]
[380991829,1755930662560,-400.0,0.00013972,2]
[380991830,1755930662570,-400.28,0.00013972,2]
[380991831,1755930662580,-432.84,0.00013972,2]
[380991832,1755930662590,-834.46,0.00013972,2]
[380991833,1755930662600,-400.0,0.00013972,2]
[380991834,1755930662610,-400.0,0.00013972,2]
[380991835,1755930662620,-400.0,0.00013972,2]
[380991836,1755930662632,-728.67,0.00013972,2]
[380991837,1755930662642,-400.0,0.00013972,2]
[380991838,1755930662652,-400.0,0.00013972,2]
[380991839,1755930662661,-491.05,0.00013972,2]
[380991840,1755930662671,-400.0,0.00013972,2]
[380991841,1755930662681,-482.83,0.00013972,2]
[380991842,1755930662691,-426.08,0.00013972,2]
[380991843,1755930662701,-718.23,0.00013972,2]
[380991844,1755930662710,-400.0,0.00013972,2]
[380991845,1755930662721,-400.0,0.00013972,2]
[380991846,1755930662731,-414.75,0.00013972,2]
[380991847,1755930662742,-400.0,0.00013972,2]
[380991848,1755930662752,-730.88,0.00013972,2]
[380991849,1755930662762,-525.23,0.00013972,2]
[380991850,1755930662772,-400.0,0.00013972,2]
[380991851,1755930662781,-400.0,0.00013972,2]
[380991852,1755930662791,-400.0,0.00013972,2]
[380991853,1755930662801,-656.34,0.00013972,2]
[380991854,1755930662811,-400.0,0.00013972,2]
[380991855,1755930662822,-861.42,0.00013972,2]
[380991856,1755930662831,-400.0,0.00013972,2]
[380991857,1755930662841,-400.0,0.00013972,2]
[380991858,1755930662851,-401.37943436,0.00013972,2]
[380991859,1755930662861,-400.0,0.00013972,2]
[380991860,1755930662870,-628.73,0.00013972,2]
[380991861,1755930662881,-529.57754124,0.00013972,2]
[380991862,1755930662891,-373.15057565,0.00013972,2]
[380991863,1755930662901,-775.38,0.00013972,2]
[380991864,1755930662910,-400.0,0.00013972,2]
[380991865,1755930662920,-400.0,0.00013972,2]
[380991866,1755930662930,-404.23,0.00013972,2]
[380991867,1755930662940,-713.07,0.00013972,2]
[380991868,1755930662950,-452.56,0.00013972,2]
[380991869,1755930662959,-400.0,0.00013972,2]
[380991870,1755930662969,-674.32,0.00013972,2]
[380991871,1755930662979,-400.0,0.00013972,2]
[380991872,1755930662989,-693.74,0.00013972,2]
[380991873,1755930662999,-400.0,0.00013972,2]
[380991874,1755930663009,-460.3,0.00013972,2]
[380991875,1755930663029,-400.0,0.00013972,2]
[380991876,1755930663041,-400.0,0.00013972,2]
[380991877,1755930663052,-400.0,0.00013972,2]
[380991878,1755930663063,-400.0,0.00013972,2]
[380991879,1755930663074,-400.0,0.00013972,2]
[380991880,1755930663084,-400.0,0.00013972,2]
[380991881,1755930663095,-400.0,0.00013972,2]
[380991882,1755930663106,-400.0,0.00013972,2]
[380991883,1755930663117,-400.0,0.00013972,2]
[380991884,1755930663129,-651.66,0.00013972,2]
[380991885,1755930663140,-490.04,0.00013972,2]
[380991886,1755930663152,-423.85,0.00013972,2]
[380991887,1755930663163,-400.0,0.00013972,2]
[380991888,1755930663174,-400.0,0.00013972,2]
[380991889,1755930663184,-597.2,0.00013972,2]
[380991890,1755930663195,-655.44,0.00013972,2]
[380991891,1755930663206,-400.0,0.00013972,2]
[380991892,1755930663217,-400.0,0.00013972,2]
[380991893,1755930663227,-400.0,0.00013972,2]
[380991894,1755930663238,-400.0,0.00013972,2]
[380991895,1755930663248,-400.0,0.00013972,2]
[380991896,1755930663258,-1022.82,0.00013972,2]
[380991897,1755930663271,-400.0,0.00013972,2]
[380991898,1755930663282,-400.0,0.00013972,2]
[380991899,1755930663292,-400.0,0.00013972,2]
[380991900,1755930663303,-470.46,0.00013972,2]
[380991901,1755930663315,-400.0,0.00013972,2]
[380991902,1755930663326,-444.53,0.00013972,2]
[380991903,1755930663337,-400.0,0.00013972,2]
[380991904,1755930663348,-400.0,0.00013972,2]
[380991905,1755930663359,-400.0,0.00013972,2]
[380991906,1755930663371,-451.36,0.00013972,2]
[380991907,1755930663385,-400.0,0.00013972,2]
[380991908,1755930663396,-649.5,0.00013972,2]
[380991909,1755930663407,-400.0,0.00013972,2]
[380991910,1755930663424,-636.13,0.00013972,2]
[380991911,1755930663436,-400.0,0.00013972,2]
[380991912,1755930663448,-480.27,0.00013972,2]
[380991913,1755930663460,-400.0,0.00013972,2]
[380991914,1755930663472,-600.17,0.00013972,2]
[380991915,1755930663483,-517.49,0.00013972,2]
[380991916,1755930663494,-400.0,0.00013972,2]
[380991917,1755930663505,-466.17,0.00013972,2]
[380991918,1755930663516,-540.76,0.00013972,2]
[380991919,1755930663529,-400.0,0.00013972,2]
[380991920,1755930663540,-400.0,0.00013972,2]
[380991921,1755930663552,-400.0,0.00013972,2]
[380991922,1755930663566,-400.0,0.00013972,2]
[380991923,1755930663577,-753.31,0.00013972,2]
[380991924,1755930663589,-404.06,0.00013972,2]
[380991925,1755930663600,-597.64,0.00013972,2]
[380991926,1755930663612,-400.0,0.00013972,2]
[380991927,1755930663623,-404.41,0.00013972,2]
[380991928,1755930663638,-458.82,0.00013972,2]
[380991929,1755930663649,-400.0,0.00013972,2]
[380991930,1755930663660,-173.28223163,0.00013972,2]
[380991931,1755930663672,-400.0,0.00013972,2]
[380991932,1755930663683,-400.0,0.00013972,2]
[380991933,1755930663695,-401.91998842,0.00013972,2]
[380991934,1755930663706,-420.73,0.00013972,2]
[380991935,1755930663717,-400.0,0.00013972,2]
[380991936,1755930663728,-400.0,0.00013972,2]
[380991937,1755930663739,-400.0,0.00013972,2]
[380991938,1755930663750,-400.0,0.00013972,2]
[380991939,1755930663761,-400.0,0.00013972,2]
[380991940,1755930663772,-898.28,0.00013972,2]
[380991941,1755930663783,-400.0,0.00013972,2]
[380991942,1755930663794,-400.0,0.00013972,2]
[380991943,1755930663805,-433.34,0.00013972,2]
[380991944,1755930663815,-400.0,0.00013972,2]
[380991945,1755930663831,-152.259471,0.00013972,2]
[380991946,1755930663842,-813.43,0.00013972,2]
[380991947,1755930663853,-400.0,0.00013972,2]
[380991948,1755930663864,-175.14779363,0.00013972,2]
[380991949,1755930663876,-400.0,0.00013972,2]
[380991950,1755930663888,-400.0,0.00013972,2]
[380991951,1755930663899,-400.0,0.00013972,2]
[380991952,1755930663910,-400.0,0.00013972,2]
[380991953,1755930663922,-400.0,0.00013972,2]
[380991954,1755930663933,-589.73,0.00013972,2]
[380991955,1755930663945,-927.72,0.00013972,2]
[380991956,1755930663956,-400.0,0.00013972,2]
[380991957,1755930663967,-530.1,0.00013972,2]
[380991958,1755930663978,-683.39,0.00013972,2]
[380991959,1755930663989,-401.91643668,0.00013972,2]
[380991960,1755930664000,-400.0,0.00013972,2]
[380991961,1755930664011,-643.13,0.00013972,2]
[380991962,1755930664022,-484.79,0.00013972,2]
[380991963,1755930664032,-400.0,0.00013972,2]
[380991964,1755930664044,-400.0,0.00013972,2]
[380991965,1755930664055,-400.0,0.00013972,2]
[380991966,1755930664066,-400.0,0.00013972,2]
[380991967,1755930664077,-558.89,0.00013972,2]
[380991968,1755930664088,-417.61,0.00013972,2]
[380991969,1755930664099,-400.0,0.00013972,2]
[380991970,1755930664110,-400.0,0.00013972,2]
[380991971,1755930664120,-433.09,0.00013972,2]
[380991972,1755930664132,-254.304402,0.00013972,2]
[380991973,1755930664143,-460.41,0.00013972,2]
[380991974,1755930664154,-400.0,0.00013972,2]
[380991975,1755930664166,-181.43141766,0.00013972,2]
[380991976,1755930664176,-463.42,0.00013972,2]
[380991977,1755930664187,-400.13,0.00013972,2]
[380991978,1755930664198,-473.4,0.00013972,2]
[380991979,1755930664213,-400.0,0.00013972,2]
[380991980,1755930664223,-400.0,0.00013972,2]
[380991981,1755930664234,-400.0,0.00013972,2]
[380991982,1755930664245,-537.84,0.00013972,2]
[380991983,1755930664256,-401.86523998,0.00013972,2]
[380991984,1755930664268,-400.0,0.00013972,2]
[380991985,1755930664280,-598.61,0.00013972,2]
[380991986,1755930664291,-659.98,0.00013972,2]
[380991987,1755930664302,-400.0,0.00013972,2]
[380991988,1755930664314,-400.0,0.00013972,2]
[380991989,1755930664325,-400.0,0.00013972,2]
[380991990,1755930664336,-559.14,0.00013972,2]
[380991991,1755930664347,-666.69,0.00013972,2]
[380991992,1755930664360,-400.0,0.00013972,2]
[380991993,1755930664371,-400.0,0.00013972,2]
[380991994,1755930664385,-1062.126313,0.00013972,2]
[380991995,1755930664396,-538.76266732,0.00013972,2]
[380991996,1755930664407,-549.63,0.00013972,2]
[380991997,1755930664417,-551.78,0.00013972,2]
[380991998,1755930664428,-400.0,0.00013972,2]
[380991999,1755930664442,-400.0,0.00013972,2]
[380992000,1755930664453,-670.71,0.00013972,2]
[380992001,1755930664464,-488.75,0.00013972,2]
[380992002,1755930664475,-504.46,0.00013972,2]
[380992003,1755930664492,-498.06,0.00013972,2]
[380992004,1755930664850,-400.0,0.00013972,2]
[380992005,1755930664878,-1574.58,0.00013972,2]
[380992006,1755930664888,-523.65,0.00013972,2]
[380992007,1755930664898,-400.0,0.00013972,2]
[380992008,1755930664907,-400.0,0.00013972,2]
[380992009,1755930664917,-400.0,0.00013972,2]
[380992010,1755930664928,-690.06,0.00013972,2]
[380992011,1755930664937,-400.0,0.00013972,2]
[380992012,1755930664947,-483.37,0.00013972,2]
[380992013,1755930664956,-400.0,0.00013972,2]
[380992014,1755930664966,-906.04,0.00013972,2]
[380992015,1755930664975,-400.0,0.00013972,2]
[380992016,1755930664985,-702.42,0.00013972,2]
[380992017,1755930664995,-400.0,0.00013972,2]
[380992018,1755930665005,-478.28,0.00013972,2]
[380992019,1755930665020,-463.08,0.00013972,2]
[380992020,1755930665035,-400.0,0.00013972,2]
[380992021,1755930665045,-896.65,0.00013972,2]
[380992022,1755930665056,-485.14,0.00013972,2]
[380992023,1755930665066,-400.0,0.00013972,2]
[380992024,1755930665076,-664.4,0.00013972,2]
[380992025,1755930665086,-463.63,0.00013972,2]
[380992026,1755930665097,-4517.39,0.00013972,2]
[380992027,1755930665107,-400.0,0.00013972,2]
[380992028,1755930665118,-400.46,0.00013972,2]
[380992029,1755930665129,-402.27801565,0.00013972,2]
[380992030,1755930665139,-400.65861162,0.00013972,2]
[380992031,1755930665149,-522.33,0.00013972,2]
[380992032,1755930665159,-400.0,0.00013972,2]
[380992033,1755930665169,-597.16,0.00013972,2]
[380992034,1755930665179,-634.29,0.00013972,2]
[380992035,1755930665189,-730.43,0.00013972,2]
[380992036,1755930665200,-400.0,0.00013972,2]
[380992037,1755930665210,-777.56,0.00013972,2]
[380992038,1755930665220,-400.0,0.00013972,2]
[380992039,1755930665230,-406.13,0.00013972,2]
[380992040,1755930665241,-400.0,0.00013972,2]
[380992041,1755930665252,-400.0,0.00013972,2]
[380992042,1755930665262,-585.18,0.00013972,2]
[380992043,1755930665280,-400.0,0.00013972,2]
[380992044,1755930665291,-400.0,0.00013972,2]
[380992045,1755930665301,-406.67,0.00013972,2]
[380992046,1755930665311,-400.0,0.00013972,2]
[380992047,1755930665322,-400.0,0.00013972,2]
[380992048,1755930665332,-820.56,0.00013972,2]
[380992049,1755930665342,-629.89,0.00013972,2]
[380992050,1755930665352,-400.0,0.00013972,2]
[380992051,1755930665362,-654.77,0.00013972,2]
[380992052,1755930665372,-677.66,0.00013972,2]
[380992053,1755930665384,-400.0,0.00013972,2]
[380992054,1755930665394,-400.0,0.00013972,2]
[380992055,1755930665405,-504.2,0.00013972,2]
[380992056,1755930665415,-401.82219832,0.00013972,2]
[380992057,1755930665426,-700.52,0.00013972,2]
[380992058,1755930665436,-401.17200427,0.00013972,2]
[380992059,1755930665446,-400.0,0.00013972,2]
[380992060,1755930665456,-522.25,0.00013972,2]
[380992061,1755930665466,-541.83,0.00013972,2]
[380992062,1755930665476,-400.0,0.00013972,2]
[380992063,1755930665486,-924.13,0.00013972,2]
[380992064,1755930665496,-626.52,0.00013972,2]
[380992065,1755930665506,-983.52,0.00013972,2]
[380992066,1755930665516,-400.0,0.00013972,2]
[380992067,1755930665526,-534.72,0.00013972,2]
[380992068,1755930665536,-400.0,0.00013972,2]
[380992069,1755930665546,-400.0,0.00013972,2]
[380992070,1755930665556,-632.58,0.00013972,2]
[380992071,1755930665566,-810.94,0.00013972,2]
[380992072,1755930665576,-463.0,0.00013972,2]
[380992073,1755930665585,-248.15832436,0.00013972,2]
[380992074,1755930665595,-1018.11,0.00013972,2]
[380992075,1755930665606,-459.77,0.00013972,2]
[380992076,1755930665615,-400.0,0.00013972,2]
[380992077,1755930665625,-401.55671918,0.00013972,2]
[380992078,1755930665636,-400.0,0.00013972,2]
[380992079,1755930665650,-400.0,0.00013972,2]
[380992080,1755930665661,-400.0,0.00013972,2]
[380992081,1755930665671,-765.63,0.00013972,2]
[380992082,1755930665682,-400.0,0.00013972,2]
[380992083,1755930665693,-814.39,0.00013972,2]
[380992084,1755930665703,-506.42,0.00013972,2]
[380992085,1755930665715,-400.0,0.00013972,2]
[380992086,1755930665725,-464.59,0.00013972,2]
[380992087,1755930665736,-400.0,0.00013972,2]
[380992088,1755930665746,-400.0,0.00013972,2]
[380992089,1755930665756,-400.0,0.00013972,2]
[380992090,1755930665767,-744.29,0.00013972,2]
[380992091,1755930665778,-707.25,0.00013972,2]
[380992092,1755930665789,-400.0,0.00013972,2]
[380992093,1755930665799,-715.14,0.00013972,2]
[380992094,1755930665810,-414.09,0.00013972,2]
[380992095,1755930665820,-1000.0,0.00013972,2]
[380992096,1755930665831,-738.62,0.00013972,2]
[380992097,1755930665842,-716.85,0.00013972,2]
[380992098,1755930665852,-400.0,0.00013972,2]
[380992099,1755930665863,-802.16,0.00013972,2]
[380992100,1755930665874,-400.0,0.00013972,2]
[380992101,1755930665885,-632.2,0.00013972,2]
[380992102,1755930665895,-933.05,0.00013972,2]
[380992103,1755930665905,-667.21,0.00013972,2]
[380992104,1755930665916,-400.0,0.00013972,2]
[380992105,1755930665926,-262.12225384,0.00013972,2]
[380992106,1755930665937,-841.3,0.00013972,2]
[380992107,1755930665948,-400.0,0.00013972,2]
[380992108,1755930665958,-400.0,0.00013972,2]
[380992109,1755930665969,-400.0,0.00013972,2]
[380992110,1755930665980,-400.0,0.00013972,2]
[380992111,1755930665990,-678.61,0.00013972,2]
[380992112,1755930666000,-400.0,0.00013972,2]
[380992113,1755930666010,-449.99,0.00013972,2]
[380992114,1755930666020,-430.74,0.00013972,2]
[380992115,1755930666032,-400.0,0.00013972,2]
[380992116,1755930666042,-519.22,0.00013972,2]
[380992117,1755930666053,-753.87,0.00013972,2]
[380992118,1755930666064,-400.0,0.00013972,2]
[380992119,1755930666075,-400.0,0.00013972,2]
[380992120,1755930666085,-400.0,0.00013972,2]
[380992121,1755930666095,-578.08,0.00013972,2]
[380992122,1755930666110,-400.0,0.00013972,2]
[380992123,1755930666120,-400.0,0.00013972,2]
[380992124,1755930666131,-762.2,0.00013972,2]
[380992125,1755930666142,-552.89,0.00013972,2]
[380992126,1755930666152,-400.0,0.00013972,2]
[380992127,1755930666162,-1130.07,0.00013972,2]
[380992128,1755930666172,-400.0,0.00013972,2]
[380992129,1755930666183,-400.0,0.00013972,2]
[380992130,1755930666193,-756.24,0.00013972,2]
[380992131,1755930666203,-400.0,0.00013972,2]
[380992132,1755930666214,-400.0,0.00013972,2]
[380992133,1755930666224,-832.04,0.00013972,2]
[380992134,1755930666234,-319.24240999,0.00013972,2]
[380992135,1755930666244,-734.03,0.00013972,2]
[380992136,1755930666255,-881.58,0.00013972,2]
[380992137,1755930666265,-607.46,0.00013972,2]
[380992138,1755930666280,-1082.64,0.00013972,2]
[380992139,1755930666290,-403.96,0.00013972,2]
[380992140,1755930666300,-400.0,0.00013972,2]
[380992141,1755930666311,-400.0,0.00013972,2]
[380992142,1755930666322,-641.12,0.00013972,2]
[380992143,1755930666332,-400.0,0.00013972,2]
[380992144,1755930666342,-400.0,0.00013972,2]
[380992145,1755930666354,-400.0,0.00013972,2]
[380992146,1755930666364,-711.56,0.00013972,2]
[380992147,1755930666375,-400.0,0.00013972,2]
[380992148,1755930666385,-400.0,0.00013972,2]
[380992149,1755930666397,-774.36,0.00013972,2]
[380992150,1755930666407,-400.0,0.00013972,2]
[380992151,1755930666417,-744.18,0.00013972,2]
[380992152,1755930666428,-472.39,0.00013972,2]
[380992153,1755930666438,-402.1478795,0.00013972,2]
[380992154,1755930666448,-403.24542882,0.00013972,2]
[380992155,1755930666459,-400.0,0.00013972,2]
[380992156,1755930666469,-541.28,0.00013972,2]
[380992157,1755930666479,-791.97,0.00013972,2]
[380992158,1755930666489,-411.91,0.00013972,2]
[380992159,1755930666499,-976.58,0.00013972,2]
[380992160,1755930666509,-400.0,0.00013972,2]
[380992161,1755930666519,-400.0,0.00013972,2]
[380992162,1755930666530,-621.35,0.00013972,2]
[380992163,1755930666540,-690.96,0.00013972,2]
[380992164,1755930666550,-602.8,0.00013972,2]
[380992165,1755930666560,-905.63,0.00013972,2]
[380992166,1755930666574,-433.28,0.00013972,2]
[380992167,1755930666585,-893.46,0.00013972,2]
[380992168,1755930666595,-402.68026936,0.00013972,2]
[380992169,1755930666606,-400.0,0.00013972,2]
[380992170,1755930666616,-400.0,0.00013972,2]
[380992171,1755930666627,-664.51,0.00013972,2]
[380992172,1755930666638,-402.65497833,0.00013972,2]
[380992173,1755930666648,-400.0,0.00013972,2]
[380992174,1755930666658,-400.0,0.00013972,2]
[380992175,1755930666668,-193.79105354,0.00013972,2]
[380992176,1755930666679,-610.58,0.00013972,2]
[380992177,1755930666689,-400.0,0.00013972,2]
[380992178,1755930666699,-975.83,0.00013972,2]
[380992179,1755930666709,-400.0,0.00013972,2]
[380992180,1755930666720,-520.12,0.00013972,2]
[380992181,1755930666731,-567.16,0.00013972,2]
[380992182,1755930666740,-437.71,0.00013972,2]
[380992183,1755930666750,-400.0,0.00013972,2]
[380992184,1755930666760,-591.76,0.00013972,2]
[380992185,1755930666771,-629.55,0.00013972,2]
[380992186,1755930666781,-976.57,0.00013972,2]
[380992187,1755930666791,-400.0,0.00013972,2]
[380992188,1755930666801,-707.96,0.00013972,2]
[380992189,1755930666811,-400.0,0.00013972,2]
[380992190,1755930666822,-548.63,0.00013972,2]
[380992191,1755930666832,-696.63,0.00013972,2]
[380992192,1755930666844,-548.08,0.00013972,2]
[380992193,1755930666854,-401.3964805,0.00013972,2]
[380992194,1755930666864,-421.64,0.00013972,2]
[380992195,1755930666874,-1327.74,0.00013972,2]
[380992196,1755930666886,-400.0,0.00013972,2]
[380992197,1755930666896,-408.25,0.00013972,2]
[380992198,1755930666907,-666.95,0.00013972,2]
[380992199,1755930666917,-400.0,0.00013972,2]
[380992200,1755930666927,-400.0,0.00013972,2]
[380992201,1755930666937,-400.0,0.00013972,2]
[380992202,1755930666947,-401.86031723,0.00013972,2]
[380992203,1755930666958,-400.0,0.00013972,2]
[380992204,1755930666968,-478.81,0.00013972,2]
[380992205,1755930666978,-400.0,0.00013972,2]
[380992206,1755930666988,-400.0,0.00013972,2]
[380992207,1755930666998,-475.87,0.00013972,2]
[380992208,1755930667008,-752.44,0.00013972,2]
[380992209,1755930667021,-553.32,0.00013972,2]
[380992210,1755930667032,-414.48,0.00013972,2]
[380992211,1755930667042,-598.85,0.00013972,2]
[380992212,1755930667052,-401.08377811,0.00013972,2]
[380992213,1755930667062,-406.98981623,0.00013972,2]
[380992214,1755930667072,-400.0,0.00013972,2]
[380992215,1755930667083,-400.0,0.00013972,2]
[380992216,1755930667093,-418.3,0.00013972,2]
[380992217,1755930667103,-400.0,0.00013972,2]
[380992218,1755930667113,-977.36,0.00013972,2]
[380992219,1755930667122,-558.79,0.00013972,2]
[380992220,1755930667132,-590.73,0.00013972,2]
[380992221,1755930667142,-400.0,0.00013972,2]
[380992222,1755930667152,-400.0,0.00013972,2]
[380992223,1755930667163,-403.32987509,0.00013972,2]
[380992224,1755930667173,-400.0,0.00013972,2]
[380992225,1755930667183,-400.0,0.00013972,2]
[380992226,1755930667192,-400.0,0.00013972,2]
[380992227,1755930667202,-400.0,0.00013972,2]
[380992228,1755930667213,-400.0,0.00013972,2]
[380992229,1755930667223,-400.0,0.00013972,2]
[380992230,1755930667233,-400.0,0.00013972,2]
[380992231,1755930667243,-400.0,0.00013972,2]
[380992232,1755930667253,-1058.0,0.00013972,2]
[380992233,1755930667263,-595.73,0.00013972,2]
[380992234,1755930667277,-792.12,0.00013972,2]
[380992235,1755930667287,-490.78,0.00013972,2]
[380992236,1755930667297,-402.19745256,0.00013972,2]
[380992237,1755930667307,-400.96358392,0.00013972,2]
[380992238,1755930667318,-400.0,0.00013972,2]
[380992239,1755930667328,-400.0,0.00013972,2]
[380992240,1755930667488,-400.0,0.00013972,2]
[380992241,1755930667498,-400.0,0.00013972,2]
[380992242,1755930667507,-664.29,0.00013972,2]
[380992243,1755930667517,-400.0,0.00013972,2]
[380992244,1755930667526,-400.0,0.00013972,2]
[380992245,1755930667535,-282.28945904,0.00013972,2]
[380992246,1755930667544,-603.04,0.00013972,2]
[380992247,1755930667554,-894.08,0.00013972,2]
[380992248,1755930667563,-400.0,0.00013972,2]
[380992249,1755930667572,-419.15,0.00013972,2]
[380992250,1755930667582,-400.0,0.00013972,2]
[380992251,1755930667591,-402.92279521,0.00013972,2]
[380992252,1755930667600,-400.0,0.00013972,2]
[380992253,1755930667610,-538.29,0.00013972,2]
[380992254,1755930667619,-400.0,0.00013972,2]
[380992255,1755930667628,-400.0,0.00013972,2]
[380992256,1755930667638,-400.0,0.00013972,2]
[380992257,1755930667647,-855.49,0.00013972,2]
[380992258,1755930667656,-400.0,0.00013972,2]
[380992259,1755930667666,-400.0,0.00013972,2]
[380992260,1755930667675,-423.93,0.00013972,2]
[380992261,1755930667684,-401.21114965,0.00013972,2]
[380992262,1755930667694,-400.0,0.00013972,2]
[380992263,1755930667703,-509.54,0.00013972,2]
[380992264,1755930667712,-633.58,0.00013972,2]
[380992265,1755930667722,-402.37855004,0.00013972,2]
[380992266,1755930667731,-400.0,0.00013972,2]
[380992267,1755930667740,-400.0,0.00013972,2]
[380992268,1755930667750,-3166.9,0.00013972,2]
[380992269,1755930667759,-400.0,0.00013972,2]
[380992270,1755930667770,-400.0,0.00013972,2]
[380992271,1755930667780,-532.83,0.00013972,2]
[380992272,1755930667790,-400.0,0.00013972,2]
[380992273,1755930667799,-462.81,0.00013972,2]
[380992274,1755930667808,-487.36,0.00013972,2]
[380992275,1755930667819,-399.76003314,0.00013972,2]
[380992276,1755930667828,-712.9,0.00013972,2]
[380992277,1755930667837,-571.73,0.00013972,2]
[380992278,1755930667847,-761.19,0.00013972,2]
[380992279,1755930667856,-990.26,0.00013972,2]
[380992280,1755930667865,-781.23,0.00013972,2]
[380992281,1755930667875,-400.0,0.00013972,2]
[380992282,1755930667885,-400.0,0.00013972,2]
[380992283,1755930667895,-400.0,0.00013972,2]
[380992284,1755930667904,-400.0,0.00013972,2]
[380992285,1755930667913,-400.0,0.00013972,2]
[380992286,1755930667923,-713.0,0.00013972,2]
[380992287,1755930667932,-594.22,0.00013972,2]
[380992288,1755930667941,-400.0,0.00013972,2]
[380992289,1755930667951,-400.0,0.00013972,2]
[380992290,1755930667960,-736.28,0.00013972,2]
[380992291,1755930667970,-400.0,0.00013972,2]
[380992292,1755930667979,-401.16901348,0.00013972,2]
[380992293,1755930667989,-715.03,0.00013972,2]
[380992294,1755930667999,-400.0,0.00013972,2]
[380992295,1755930668009,-441.42,0.00013972,2]
[380992296,1755930668018,-931.43,0.00013972,2]
[380992297,1755930668027,-942.63,0.00013972,2]
[380992298,1755930668037,-400.0,0.00013972,2]
[380992299,1755930668046,-602.5,0.00013972,2]
[380992300,1755930668056,-649.04,0.00013972,2]
[380992301,1755930668065,-400.0,0.00013972,2]
[380992302,1755930668074,-553.23,0.00013972,2]
[380992303,1755930668083,-400.0,0.00013972,2]
[380992304,1755930668094,-720.71,0.00013972,2]
[380992305,1755930668106,-419.63,0.00013972,2]
[380992306,1755930668116,-624.59,0.00013972,2]
[380992307,1755930668125,-797.24,0.00013972,2]
[380992308,1755930668135,-400.0,0.00013972,2]